fUSD/lending_fUSD_20240205
["ID","MTS","AMOUNT","RATE_DAILY","PERIOD"]
[313298095,1707112239283,-500.0,0.00043835,2]
[313298096,1707112239296,-500.0,0.00043835,2]
[313298097,1707112239305,-500.0,0.00043835,2]
[313298098,1707112239315,-500.0,0.00043835,2]
[313298099,1707112239324,-500.0,0.00043835,2]
[313298100,1707112239333,-308.55208241,0.00043835,2]
[313298101,1707112239343,-1000.0,0.00043835,30]
[313298102,1707112239352,-500.0,0.00043835,2]
[313298103,1707112239361,-500.0,0.00043835,2]
[313298104,1707112239371,-500.0,0.00043835,2]
[313298105,1707112239380,-500.0,0.00043835,2]
[313298106,1707112239390,-500.0,0.00043835,2]
[313298107,1707112239400,-500.0,0.00043835,2]
[313298108,1707112239409,-500.0,0.00043835,2]
[313298109,1707112239419,-648.15885272,0.00043835,2]
[313298110,1707112239428,-163.17684997,0.00043835,2]
[313298111,1707112239438,-500.0,0.00043835,2]
[313298112,1707112239449,-1000.0,0.00043835,7]
[313298113,1707112239459,-523.02184403,0.00043835,2]
[313298114,1707112239469,-999.72,0.00043835,5]
[313298115,1707112239478,-185.58169061,0.00043835,2]
[313298116,1707112239488,-912.03,0.00043835,2]
[313298117,1707112239497,-500.0,0.00043835,2]
[313298118,1707112239507,-500.0,0.00043835,2]
[313298119,1707112239516,-465.09076184,0.00043835,2]
[313298120,1707112239527,-542.52430849,0.00043835,2]
[313298121,1707112239537,-500.0,0.00043835,2]
[313298122,1707112239547,-437.29076489,0.00043835,2]
[313298123,1707112239556,-500.0,0.00043835,2]
[313298124,1707112239566,-273.99229106,0.00043835,2]
[313298125,1707112239575,-500.0,0.00043835,2]
[313298126,1707112239585,-511.740152,0.00043835,2]
[313298127,1707112239594,-544.44188896,0.00043835,2]
[313298128,1707112239604,-224.47409041,0.00043835,2]
[313298129,1707112239613,-500.0,0.00043835,2]
[313298130,1707112239623,-500.0,0.00043835,2]
[313298131,1707112239632,-500.0,0.00043835,2]
[313298132,1707112239641,-619.1372581,0.00043835,2]
[313298133,1707112239651,-227.73363597,0.00043835,2]
[313298134,1707112239660,-485.59628558,0.00043835,2]
[313298135,1707112239670,-500.0,0.00043835,2]
[313298136,1707112239679,-500.0,0.00043835,2]
[313298137,1707112239688,-500.0,0.00043835,2]
[313298138,1707112239698,-509.15034196,0.00043835,2]
[313298139,1707112239707,-500.0,0.00043835,2]
[313298140,1707112239717,-513.9066091,0.00043835,2]
[313298141,1707112239726,-547.28639944,0.00043835,2]
[313298142,1707112239736,-2657.66,0.00043835,2]
[313298143,1707112239746,-500.0,0.00043835,2]
[313298144,1707112239756,-720.02,0.00043835,2]
[313298145,1707112239765,-500.0,0.00043835,2]
[313298146,1707112239774,-507.52059064,0.00043835,2]
[313298147,1707112239783,-500.0,0.00043835,2]
[313298148,1707112239793,-500.0,0.00043835,2]
[313298149,1707112239802,-500.0,0.00043835,2]
[313298150,1707112239812,-500.0,0.00043835,2]
[313298151,1707112239821,-500.0,0.00043835,2]
[313298152,1707112239831,-500.0,0.00043835,2]
[313298153,1707112239840,-2773.52,0.00043835,2]
[313298154,1707112239849,-500.0,0.00043835,2]
[313298155,1707112239858,-500.0,0.00043835,2]
[313298156,1707112239868,-621.45,0.00043835,2]
[313298157,1707112239877,-500.0,0.00043835,2]
[313298158,1707112239887,-500.0,0.00043835,2]
[313298159,1707112239896,-500.0,0.00043835,2]
[313298160,1707112239905,-494.5072489,0.00043835,2]
[313298161,1707112239915,-269.09741139,0.00043835,2]
[313298162,1707112239924,-222.73096062,0.00043835,2]
[313298163,1707112239933,-500.0,0.00043835,2]
[313298164,1707112239943,-500.0,0.00043835,2]
[313298165,1707112239953,-500.0,0.00043835,2]
[313298166,1707112239965,-500.0,0.00043835,2]
[313298167,1707112239974,-500.0,0.00043835,2]
[313298168,1707112239984,-228.54674464,0.00043835,2]
[313298169,1707112239994,-530.06354345,0.00043835,2]
[313298170,1707112240003,-500.0,0.00043835,2]
[313298171,1707112240013,-1753.63,0.00043836,15]
[313298172,1707112240024,-212.07754128,0.00043836,7]
[313298173,1707112240033,-200.0,0.000439,20]
[313298174,1707112240042,-176.95,0.00043911,2]
[313298175,1707112240052,-183.662556,0.0004396,2]
[313298176,1707112240062,-247.23947113,0.00044,30]
[313298177,1707112240071,-197.27201087,0.00044,30]
[313298178,1707112240081,-275.0,0.0004419,2]
[313298179,1707112240090,-532.37,0.00044241,2]
[313298180,1707112240099,-698.76165917,0.00044283,2]
[313298181,1707112240108,-2330.51385882,0.00044283,2]
[313298182,1707112240117,-646.85246016,0.00044283,2]
[313298183,1707112240127,-568.76477336,0.00044283,2]
[313298184,1707112240136,-187.4680551,0.00044283,2]
[313298185,1707112240146,-23068.0,0.0004429,2]
[313298186,1707112240155,-306.0,0.0004429,2]
[313298187,1707112240165,-3469.19690854,0.00044295,19]
[313298188,1707112240174,-103118.100654,0.00044373,10]
[313298189,1707112240183,-500.0,0.00044382,2]
[313298190,1707112240192,-500.0,0.00044383,2]
[313298191,1707112240201,-500.0,0.00044383,2]
[313298192,1707112240210,-568.03195315,0.00044383,2]
[313298193,1707112240220,-500.0,0.00044383,2]
[313298194,1707112240229,-500.0,0.00044383,2]
[313298195,1707112240238,-525.47836698,0.00044383,2]
[313298196,1707112240248,-240.34268855,0.00044383,2]
[313298197,1707112240258,-593.42,0.00044383,2]
[313298198,1707112240267,-500.0,0.00044383,2]
[313298199,1707112240276,-535.44998884,0.00044383,2]
[313298200,1707112240286,-169.81175688,0.00044383,2]
[313298201,1707112240295,-500.0,0.00044383,2]
[313298202,1707112240305,-417.60742226,0.00044383,2]
[313298203,1707112240314,-500.0,0.00044383,2]
[313298204,1707112240323,-641.25560081,0.00044383,2]
[313298205,1707112240333,-500.0,0.00044383,2]
[313298206,1707112240342,-246.7877666,0.00044383,2]
[313298207,1707112240352,-500.0,0.00044383,2]
[313298208,1707112240362,-500.0,0.00044383,2]
[313298209,1707112240372,-500.0,0.00044383,2]
[313298210,1707112240381,-500.0,0.00044383,2]
[313298211,1707112240390,-500.0,0.00044383,2]
[313298212,1707112240399,-500.0,0.00044383,2]
[313298213,1707112240409,-643.09959265,0.00044383,2]
[313298214,1707112240419,-398.40873023,0.00044383,2]
[313298215,1707112240428,-500.0,0.00044383,2]
[313298216,1707112240437,-500.0,0.00044383,2]
[313298217,1707112240448,-500.0,0.00044383,2]
[313298218,1707112240458,-500.0,0.00044383,2]
[313298219,1707112240467,-500.0,0.00044383,2]
[313298220,1707112240476,-500.0,0.00044383,2]
[313298221,1707112240485,-500.0,0.00044383,2]
[313298222,1707112240495,-571.11489658,0.00044383,2]
[313298223,1707112240504,-500.0,0.00044383,2]
[313298224,1707112240514,-584.53574803,0.00044383,2]
[313298225,1707112240524,-500.0,0.00044383,2]
[313298226,1707112240534,-500.0,0.00044383,2]
[313298227,1707112240543,-500.0,0.00044383,2]
[313298228,1707112240553,-500.0,0.00044383,2]
[313298229,1707112240562,-500.0,0.00044383,2]
[313298230,1707112240571,-500.0,0.00044383,2]
[313298231,1707112240581,-500.0,0.00044383,2]
[313298232,1707112240590,-500.0,0.00044383,2]
[313298233,1707112240599,-500.0,0.00044383,2]
[313298234,1707112240608,-500.0,0.00044383,2]
[313298235,1707112240618,-163.82752063,0.00044383,2]
[313298236,1707112240628,-223.74664376,0.00044383,2]
[313298237,1707112240637,-152.69742423,0.00044383,2]
[313298238,1707112240646,-500.0,0.00044383,2]
[313298239,1707112240655,-500.0,0.00044383,2]
[313298240,1707112240665,-500.0,0.00044383,2]
[313298241,1707112240674,-640.39919706,0.00044383,2]
[313298242,1707112240683,-500.0,0.00044383,2]
[313298243,1707112240693,-320.09478001,0.00044383,2]
[313298244,1707112240702,-723.41,0.00044383,7]
[313298245,1707112240711,-500.0,0.00044383,2]
[313298246,1707112240720,-500.0,0.00044383,2]
[313298247,1707112240730,-500.0,0.00044383,2]
[313298248,1707112240739,-500.0,0.00044383,2]
[313298249,1707112240748,-500.0,0.00044383,2]
[313298250,1707112240758,-635.86539444,0.00044383,2]
[313298251,1707112240767,-1000.0,0.00044383,7]
[313298252,1707112240777,-500.0,0.00044383,2]
[313298253,1707112240786,-500.0,0.00044383,2]
[313298254,1707112240795,-500.0,0.00044383,2]
[313298255,1707112240805,-500.0,0.00044383,2]
[313298256,1707112240815,-500.0,0.00044383,2]
[313298257,1707112240824,-795.59,0.00044383,2]
[313298258,1707112240834,-500.0,0.00044383,2]
[313298259,1707112240843,-500.0,0.00044383,2]
[313298260,1707112240852,-500.0,0.00044383,2]
[313298262,1707112240862,-254.41207995,0.00044383,2]
[313298264,1707112240871,-500.0,0.00044383,2]
[313298266,1707112240880,-500.0,0.00044383,2]
[313298268,1707112240890,-515.06,0.00044383,2]
[313298270,1707112240899,-500.0,0.00044383,2]
[313298271,1707112240908,-500.0,0.00044383,2]
[313298272,1707112240917,-500.0,0.00044383,2]
[313298273,1707112240927,-635.20421691,0.00044383,2]
[313298274,1707112240936,-500.0,0.00044383,2]
[313298275,1707112240945,-508.63290534,0.00044383,2]
[313298276,1707112240954,-500.0,0.00044383,2]
[313298277,1707112240963,-182.71259555,0.00044383,2]
[313298278,1707112240973,-500.0,0.00044383,2]
[313298279,1707112240982,-584.43892316,0.00044383,2]
[313298280,1707112240992,-581.23018895,0.00044383,2]
[313298281,1707112241001,-171.71094492,0.00044383,2]
[313298282,1707112241011,-500.0,0.00044383,2]
[313298283,1707112241020,-515.48,0.00044383,2]
[313298284,1707112241029,-500.0,0.00044383,2]
[313298285,1707112241038,-566.91517626,0.00044383,2]
[313298286,1707112241047,-575.09056495,0.00044383,2]
[313298287,1707112241056,-500.0,0.00044383,2]
[313298288,1707112241065,-500.0,0.00044383,2]
[313298289,1707112241074,-500.0,0.00044383,2]
[313298290,1707112241083,-390.74281517,0.00044383,2]
[313298291,1707112241211,-500.0,0.00044383,2]
[313298292,1707112241221,-500.0,0.00044383,2]
[313298293,1707112241231,-500.0,0.00044383,2]
[313298294,1707112241241,-345.27170024,0.00044383,2]
[313298295,1707112241259,-587.79600722,0.00044383,2]
[313298296,1707112241272,-500.0,0.00044383,2]
[313298297,1707112241283,-159.05507953,0.00044383,2]
[313298298,1707112241293,-500.0,0.00044383,2]
[313298299,1707112241303,-500.0,0.00044383,2]
[313298300,1707112241313,-500.0,0.00044383,2]
[313298301,1707112241323,-500.0,0.00044383,2]
[313298302,1707112241333,-500.0,0.00044383,2]
[313298303,1707112241343,-500.0,0.00044383,2]
[313298304,1707112241353,-608.97,0.00044383,2]
[313298305,1707112241362,-500.0,0.00044383,2]
[313298306,1707112241372,-189.8423029,0.00044383,2]
[313298307,1707112241381,-153.69489303,0.00044383,2]
[313298308,1707112241391,-500.0,0.00044383,2]
[313298309,1707112241402,-563.20125112,0.00044383,2]
[313298310,1707112241411,-648.91384893,0.00044383,2]
[313298311,1707112241420,-500.0,0.00044383,2]
[313298312,1707112241430,-151.22093265,0.00044383,2]
[313298313,1707112241440,-500.0,0.00044383,2]
[313298314,1707112241658,-512.89549015,0.00044383,2]
[313298315,1707112241668,-560.86929353,0.00044383,2]
[313298316,1707112241678,-500.0,0.00044383,2]
[313298317,1707112241688,-500.0,0.00044383,2]
[313298318,1707112241698,-500.0,0.00044383,2]
[313298319,1707112241708,-500.0,0.00044383,2]
[313298320,1707112241717,-500.0,0.00044383,2]
[313298321,1707112241728,-500.0,0.00044383,2]
[313298322,1707112241738,-500.0,0.00044383,2]
[313298323,1707112241748,-500.0,0.00044383,2]
[313298324,1707112241758,-560.37918357,0.00044383,2]
[313298325,1707112241767,-504.51507524,0.00044383,2]
[313298326,1707112241777,-501.92557636,0.00044383,2]
[313298327,1707112241787,-500.0,0.00044383,2]
[313298328,1707112241797,-500.0,0.00044383,2]
[313298329,1707112241806,-500.0,0.00044383,2]
[313298330,1707112241816,-500.0,0.00044383,2]
[313298331,1707112241825,-423.20855357,0.00044383,2]
[313298332,1707112241835,-500.0,0.00044383,2]
[313298333,1707112241844,-500.0,0.00044383,2]
[313298334,1707112241854,-500.0,0.00044383,2]
[313298335,1707112241864,-500.0,0.00044383,30]
[313298336,1707112241874,-500.0,0.00044383,2]
[313298338,1707112241884,-500.0,0.00044383,2]
[313298340,1707112241893,-500.0,0.00044383,2]
[313298341,1707112241903,-583.55091319,0.00044383,2]
[313298342,1707112241913,-500.0,0.00044383,2]
[313298343,1707112241923,-500.0,0.00044383,2]
[313298344,1707112241932,-500.0,0.00044383,2]
[313298345,1707112241942,-500.0,0.00044383,2]
[313298346,1707112241951,-500.0,0.00044383,2]
[313298347,1707112241961,-500.0,0.00044383,2]
[313298348,1707112241971,-316.33006207,0.00044383,2]
[313298349,1707112241981,-500.0,0.00044383,2]
[313298350,1707112241990,-156.2009534,0.00044383,2]
[313298351,1707112242001,-788.08,0.00044383,2]
[313298352,1707112242010,-599.12161872,0.00044383,2]
[313298353,1707112242020,-500.0,0.00044383,2]
[313298354,1707112242030,-500.0,0.00044383,2]
[313298355,1707112242039,-500.0,0.00044383,2]
[313298356,1707112242049,-500.0,0.00044383,2]
[313298357,1707112242059,-2068.4,0.00044383,2]
[313298358,1707112242068,-500.0,0.00044383,2]
[313298359,1707112242077,-500.0,0.00044383,2]
[313298360,1707112242087,-604.55076125,0.00044383,2]
[313298361,1707112242096,-552.58866946,0.00044383,2]
[313298362,1707112242105,-500.0,0.00044383,2]
[313298363,1707112242115,-500.0,0.00044383,2]
[313298364,1707112242124,-500.0,0.00044383,2]
[313298365,1707112242134,-500.0,0.00044383,2]
[313298366,1707112242144,-500.0,0.00044383,2]
[313298367,1707112242153,-631.83,0.00044383,2]
[313298368,1707112242162,-260.89365062,0.00044383,2]
[313298369,1707112242172,-500.0,0.00044383,2]
[313298370,1707112242182,-500.0,0.00044383,2]
[313298371,1707112242191,-500.0,0.00044383,2]
[313298372,1707112242201,-164.94262031,0.00044383,2]
[313298373,1707112242211,-500.0,0.00044383,2]
[313298374,1707112242221,-500.0,0.00044383,2]
[313298375,1707112242232,-500.0,0.00044383,2]
[313298376,1707112242241,-500.0,0.00044383,2]
[313298377,1707112242251,-500.0,0.00044383,2]
[313298378,1707112242261,-500.0,0.00044383,2]
[313298379,1707112242270,-10000.0,0.00044383,3]
[313298380,1707112242280,-500.0,0.00044383,2]
[313298381,1707112242289,-618.73303706,0.00044383,2]
[313298382,1707112242298,-500.0,0.00044383,2]
[313298383,1707112242308,-500.0,0.00044383,2]
[313298384,1707112242317,-500.0,0.00044383,2]
[313298385,1707112242326,-500.0,0.00044383,2]
[313298386,1707112242336,-500.0,0.00044383,2]
[313298387,1707112242345,-500.0,0.00044383,2]
[313298388,1707112242354,-161.07839132,0.00044383,2]
[313298389,1707112242364,-500.0,0.00044383,2]
[313298390,1707112242373,-500.0,0.00044383,2]
[313298391,1707112242383,-500.0,0.00044383,2]
[313298392,1707112242392,-500.0,0.00044383,2]
[313298393,1707112242401,-500.0,0.00044383,2]
[313298394,1707112242411,-500.0,0.00044383,2]
[313298395,1707112242420,-466.75070018,0.00044383,2]
[313298396,1707112242430,-1384.96,0.00044383,2]
[313298397,1707112242440,-500.0,0.00044383,2]
[313298398,1707112242452,-500.0,0.00044383,2]
[313298399,1707112242461,-500.0,0.00044383,2]
[313298400,1707112242471,-500.0,0.00044383,2]
[313298401,1707112242480,-500.0,0.00044383,2]
[313298402,1707112242490,-500.0,0.00044383,2]
[313298403,1707112242499,-500.0,0.00044383,2]
[313298404,1707112242508,-500.0,0.00044383,2]
[313298405,1707112242517,-500.0,0.00044383,2]
[313298406,1707112242529,-500.0,0.00044383,20]
[313298407,1707112242539,-261.55357902,0.00044383,2]
[313298408,1707112242549,-500.0,0.00044383,2]
[313298409,1707112242558,-888.18,0.00044383,5]
[313298410,1707112242567,-500.0,0.00044383,2]
[313298411,1707112242577,-1588.4,0.00044383,2]
[313298412,1707112242586,-500.0,0.00044383,2]
[313298413,1707112242595,-1616.41,0.00044383,2]
[313298414,1707112242605,-500.0,0.00044383,2]
[313298415,1707112242614,-500.0,0.00044383,2]
[313298416,1707112242624,-500.0,0.00044383,2]
[313298417,1707112242633,-500.0,0.00044383,2]
[313298418,1707112242642,-500.0,0.00044383,2]
[313298419,1707112242652,-5231.97,0.00044383,2]
[313298420,1707112242661,-758.05,0.00044383,2]
[313298421,1707112242671,-553.3784994,0.00044383,2]
[313298422,1707112242681,-500.0,0.00044383,2]
[313298423,1707112242694,-164.81390276,0.00044383,2]
[313298424,1707112242712,-500.0,0.00044383,2]
[313298425,1707112242727,-500.0,0.00044383,2]
[313298426,1707112242743,-637.82607341,0.00044383,2]
[313298427,1707112242755,-500.0,0.00044383,2]
[313298428,1707112242767,-500.0,0.00044383,2]
[313298429,1707112242782,-500.0,0.00044383,2]
[313298430,1707112242796,-500.0,0.00044383,2]
[313298431,1707112242810,-500.0,0.00044383,2]
[313298432,1707112242824,-500.0,0.00044383,2]
[313298433,1707112242837,-503.82471758,0.00044383,2]
[313298434,1707112242849,-500.0,0.00044383,2]
[313298435,1707112242860,-199.31834926,0.00044383,2]
[313298436,1707112242874,-500.0,0.00044383,2]
[313298437,1707112242887,-500.0,0.00044383,2]
[313298438,1707112242901,-500.0,0.00044383,2]
[313298439,1707112242913,-500.0,0.00044383,2]
[313298440,1707112242926,-500.0,0.00044383,2]
[313298441,1707112242940,-500.0,0.00044383,2]
[313298442,1707112242951,-500.0,0.00044383,2]
[313298443,1707112242962,-500.0,0.00044383,2]
[313298444,1707112242977,-500.0,0.00044383,2]
[313298445,1707112242990,-500.0,0.00044383,2]
[313298446,1707112243004,-639.15039554,0.00044383,2]
[313298447,1707112243016,-500.0,0.00044383,2]
[313298448,1707112243029,-500.0,0.00044383,2]
[313298449,1707112243041,-500.0,0.00044383,2]
[313298450,1707112243054,-500.0,0.00044383,2]
[313298451,1707112243067,-500.0,0.00044383,2]
[313298452,1707112243081,-500.0,0.00044383,2]
[313298453,1707112243094,-500.0,0.00044383,2]
[313298454,1707112243108,-500.0,0.00044383,2]
[313298455,1707112243122,-527.9546946,0.00044383,2]
[313298456,1707112243134,-500.0,0.00044383,2]
[313298457,1707112243145,-500.0,0.00044383,2]
[313298459,1707112243156,-534.31955693,0.00044383,2]
[313298460,1707112243168,-500.0,0.00044383,2]
[313298461,1707112243182,-429.54967736,0.00044383,2]
[313298462,1707112243193,-500.0,0.00044383,2]
[313298463,1707112243205,-213.91344032,0.00044383,2]
[313298464,1707112243217,-500.0,0.00044383,2]
[313298465,1707112243228,-500.0,0.00044383,2]
[313298466,1707112243239,-500.0,0.00044383,2]
[313298467,1707112243251,-500.0,0.00044383,2]
[313298468,1707112243262,-500.0,0.00044383,2]
[313298469,1707112243273,-500.0,0.00044383,2]
[313298471,1707112243284,-1382.49,0.00044383,2]
[313298473,1707112243295,-500.0,0.00044383,2]
[313298475,1707112243307,-500.0,0.00044383,2]
[313298477,1707112243318,-500.0,0.00044383,2]
[313298479,1707112243330,-500.0,0.00044383,2]
[313298480,1707112243341,-202.2394473,0.00044383,2]
[313298481,1707112243353,-500.0,0.00044383,2]
[313298482,1707112243402,-500.0,0.00044383,2]
[313298483,1707112243414,-500.0,0.00044383,2]
[313298484,1707112243425,-500.0,0.00044383,2]
[313298485,1707112243437,-500.0,0.00044383,2]
[313298486,1707112243450,-500.0,0.00044383,2]
[313298487,1707112243462,-500.0,0.00044383,2]
[313298488,1707112243473,-500.0,0.00044383,2]
[313298489,1707112243485,-500.0,0.00044383,2]
[313298490,1707112243497,-500.0,0.00044383,2]
[313298491,1707112243509,-500.0,0.00044383,2]
[313298492,1707112243520,-500.0,0.00044383,2]
[313298493,1707112243532,-500.0,0.00044383,2]
[313298494,1707112243544,-500.0,0.00044383,2]
[313298495,1707112243555,-500.0,0.00044383,2]
[313298496,1707112243566,-500.0,0.00044383,2]
[313298497,1707112243578,-648.10988171,0.00044383,2]
[313298498,1707112243589,-1000.0,0.00044383,7]
[313298499,1707112243600,-500.0,0.00044383,2]
[313298500,1707112243611,-500.0,0.00044383,2]
[313298501,1707112243623,-500.0,0.00044383,2]
[313298502,1707112243635,-536.73473847,0.00044383,2]
[313298503,1707112243647,-500.0,0.00044383,2]
[313298504,1707112243658,-500.0,0.00044383,2]
[313298505,1707112243670,-597.2,0.00044383,2]
[313298506,1707112243681,-500.0,0.00044383,2]
[313298507,1707112243694,-500.0,0.00044383,2]
[313298508,1707112243705,-500.0,0.00044383,2]
[313298509,1707112243717,-500.0,0.00044383,2]
[313298510,1707112243728,-249.624834,0.00044383,2]
[313298511,1707112243740,-1000.0,0.00044383,30]
[313298512,1707112243752,-500.0,0.00044383,2]
[313298513,1707112243763,-500.0,0.00044383,2]
[313298514,1707112243774,-500.0,0.00044383,2]
[313298517,1707112243785,-500.0,0.00044383,2]
[313298519,1707112243796,-1000.0,0.00044383,7]
[313298521,1707112243807,-999.72,0.00044383,5]
[313298523,1707112243818,-912.03,0.00044383,2]
[313298525,1707112243830,-500.0,0.00044383,2]
[313298527,1707112243842,-500.0,0.00044383,2]
[313298529,1707112243853,-500.0,0.00044383,2]
[313298531,1707112243864,-623.25703508,0.00044383,2]
[313298533,1707112243875,-196.35527703,0.00044383,2]
[313298535,1707112243887,-500.0,0.00044383,2]
[313298536,1707112243898,-500.0,0.00044383,2]
[313298538,1707112243909,-500.0,0.00044383,2]
[313298540,1707112243920,-500.0,0.00044383,2]
[313298542,1707112243932,-500.0,0.00044383,2]
[313298543,1707112243944,-500.0,0.00044383,2]
[313298545,1707112243954,-500.0,0.00044383,2]
[313298547,1707112243967,-2657.66,0.00044383,2]
[313298549,1707112243978,-500.0,0.00044383,2]
[313298550,1707112243989,-720.02,0.00044383,2]
[313298552,1707112244000,-500.0,0.00044383,2]
[313298554,1707112244011,-500.0,0.00044383,2]
[313298556,1707112244022,-500.0,0.00044383,2]
[313298558,1707112244033,-500.0,0.00044383,2]
[313298560,1707112244044,-500.0,0.00044383,2]
[313298562,1707112244055,-500.0,0.00044383,2]
[313298563,1707112244066,-500.0,0.00044383,2]
[313298564,1707112244078,-2773.52,0.00044383,2]
[313298565,1707112244089,-500.0,0.00044383,2]
[313298566,1707112244101,-621.45,0.00044383,2]
[313298567,1707112244112,-500.0,0.00044383,2]
[313298568,1707112244124,-361.45087734,0.00044383,2]
[313298569,1707112244135,-206.88240936,0.00044383,2]
[313298570,1707112244146,-440.2845283,0.00044383,2]
[313298571,1707112244158,-500.0,0.00044383,2]
[313298572,1707112244170,-500.0,0.00044383,2]
[313298573,1707112244182,-500.0,0.00044383,2]
[313298574,1707112244194,-500.0,0.00044383,2]
[313298575,1707112244205,-173.55358857,0.00044383,2]
[313298576,1707112244217,-200.0,0.000444,20]
[313298577,1707112244228,-176.95,0.00044459,2]
[313298578,1707112244238,-322.37878484,0.00044481,10]
[313298579,1707112244423,-322.37878484,0.00044481,10]
[313298580,1707112244446,-1576.74224064,0.00044497,10]
[313298581,1707112244459,-1576.74224064,0.00044499,10]
[313298582,1707112244469,-322.37878484,0.00044506,10]
[313298583,1707112244478,-1576.74224064,0.00044509,10]
[313298584,1707112244488,-474.62566968,0.0004455,5]
[313298585,1707112244498,-300.0,0.000446,20]
[313298586,1707112244508,-1000.0,0.000446,6]
[313298587,1707112244517,-152.46,0.00044685,2]
[313298588,1707112244528,-183.662556,0.00044692,30]
[313298589,1707112244538,-156.90293306,0.00044831,2]
[313298590,1707112244547,-3469.19690854,0.00044856,20]
[313298591,1707112244557,-2795.69072813,0.00044869,4]
[313298592,1707112244739,-500.0,0.00043835,2]
[313298593,1707112244749,-568.14008001,0.00044869,4]
[313298594,1707112244758,-500.0,0.0004489,21]
[313298595,1707112244767,-6619.82520007,0.0004489,2]
[313298596,1707112245063,-2523.83937887,0.00029894,2]
[313298597,1707112245156,-233.76,0.00026,2]
[313298598,1707112245166,-246.01960225,0.00029894,2]
[313298637,1707112447350,416.239999,0.0002,2]
[313298657,1707113431547,-346.93885187,0.00022899,2]
[313298658,1707113431559,-759.52356422,0.000229,2]
[313298659,1707113431600,-330.73418012,0.000229,2]
[313298660,1707113431609,-414.62408237,0.000256,2]
[313298661,1707113431621,-3153.1872636,0.000256,2]
[313298662,1707113431630,-1612.08631409,0.00026,2]
[313298663,1707113431639,-150.0,0.00026,2]
[313298664,1707113431648,-165.5362845,0.00029794,2]
[313298665,1707113431658,-300.0,0.00029893,2]
[313298666,1707113431667,-200.0,0.00029894,2]
[313298667,1707113431676,-1036.36182794,0.00029894,2]
[313298668,1707113431685,-1025.97688255,0.00029894,2]
[313298669,1707113431694,-307.42675596,0.00029894,2]
[313298670,1707113431704,-4141.4376246,0.00029894,2]
[313298671,1707113431713,-618.21508182,0.00029894,2]
[313298672,1707113431723,-6153.98459151,0.00029894,2]
[313298673,1707113431732,-155.0,0.00032099,2]
[313298674,1707113431742,-689.35,0.000321,2]
[313298675,1707113431751,-347.06,0.00033362,2]
[313298676,1707113431761,-2331.0,0.000337,3]
[313298677,1707113431770,-165.53628448,0.00033797,2]
[313298678,1707113431780,-150.99,0.00033797,2]
[313298679,1707113431793,-176.95,0.00034526,2]
[313298680,1707113431802,-216.80939877,0.00034742,10]
[313298681,1707113431812,-182.16767527,0.00034742,10]
[313298682,1707113431823,-192.29,0.00034976,120]
[313298684,1707113431834,-739.01,0.00034983,2]
[313298686,1707113431844,-500.0,0.00035067,2]
[313298688,1707113431854,-176.95,0.00035074,2]
[313298690,1707113431864,-150.0,0.00035302,2]
[313298692,1707113431873,-249.97,0.00035365,2]